bitfinex-derivatives/quotes_SOLF0:USTF0_20250409
["timestamp","ask_amount","ask_price","bid_price","bid_amount"]
[1744197491337,58.96,104.98,104.91,14.1135]
[1744197491737,9.5324,104.96,104.91,14.1135]
[1744197492035,58.96,104.98,104.91,14.1135]
[1744197492230,9.5328,104.96,104.92,9.535]
[1744197492545,98.18640724,104.98,104.89,1.90675946]
[1744197492738,9.5343,104.94,104.91,9.536]
[1744197492938,58.98,104.94,104.89,1.90675946]
[1744197493138,98.20640724,104.94,104.89,1.90675946]
[1744197493442,98.20640724,104.94,104.83,53.40630724]
[1744197493443,39.22640724,104.92,104.83,53.40630724]
[1744197493832,39.22640724,104.92,104.87,9.5396]
[1744197494035,39.22640724,104.92,104.83,53.40630724]
[1744197494241,39.22640724,104.9,104.83,14.1799]
[1744197494435,39.22640724,104.88,104.78,39.22640724]
[1744197494635,58.98,104.87,104.79,4.5278]
[1744197495031,58.98,104.87,104.8,39.22640724]
[1744197495439,59.0,104.9,104.82,39.22640724]
[1744197495741,59.0,104.9,104.82,98.22640724]
[1744197495946,9.5385,104.89,104.85,9.5415]
[1744197496130,59.0,104.9,104.85,9.5415]
[1744197496336,59.0,104.9,104.82,59.0]
[1744197496532,59.0,104.9,104.8,39.22640724]
[1744197496533,39.22640724,104.89,104.8,39.22640724]
[1744197496842,59.0,104.9,104.8,39.22640724]
[1744197497036,48.76510724,104.89,104.85,9.5415]
[1744197497232,63.90578645,104.89,104.79,68.43358645]
[1744197497449,63.90578645,104.89,86.151,2.93515303]
[1744197497450,63.90578645,104.85,86.151,2.93515303]
[1744197529760,59.02,104.95,104.88,63.90578645]
[1744197530167,9.5363,104.92,104.86,63.90578645]
[1744197530662,68.5571,104.91,104.85,63.90578645]
[1744197530857,59.02,104.9,104.85,63.90578645]
[1744197531360,59.02,104.9,104.86,9.5406]
[1744197531765,59.02,104.9,104.85,9.5415]
[1744197532059,59.02,104.9,104.83,63.90578645]
[1744197532060,59.02,104.9,104.84,62.0]
[1744197532461,59.02,104.9,104.82,63.86856728]
[1744197532658,59.02,104.9,104.84,63.86856728]
[1744197533059,63.715,104.93,104.86,63.86856728]
[1744197533260,9.5357,104.92,104.89,9.538]
[1744197533856,68.5557,104.92,104.88,9.5387]
[1744197534167,9.5367,104.91,104.86,63.86856728]
[1744197534370,122.88856728,104.92,104.86,9.5404]
[1744197534565,59.02,104.92,104.86,9.5404]
[1744197535168,59.02,104.92,104.88,0.06645001]
[1744197535360,9.5384,104.89,104.88,0.06645001]
[1744197535560,59.02,104.92,104.88,0.06645001]
[1744197535761,9.5367,104.91,104.88,0.06645001]
[1744197535961,59.02,104.92,104.89,9.5381]
[1744197536160,4.695,104.93,104.88,0.06645001]
[1744197536365,9.5383,104.89,104.88,0.06645001]
[1744197536658,68.55936706,104.93,104.82,68.46696706]
[1744197536659,63.86436706,104.91,104.82,68.46696706]
[1744197536864,9.5406,104.87,104.83,1.9078508]
[1744197537059,59.02,104.88,104.83,1.9078508]
[1744197537265,9.5428,104.85,104.83,1.9078508]
[1744197537464,59.02,104.87,104.83,1.9078508]
[1744197537668,0.07139321,104.85,104.83,1.97694945]
[1744197537870,0.07139321,104.85,104.77,63.86436706]
[1744197538065,63.86436706,104.85,104.76,9.2407]
[1744197538363,9.5479,104.79,104.74,63.86436706]
[1744197538558,59.02,104.8,104.73,4.5286]
[1744197538762,59.02,104.79,104.73,4.5286]
[1744197539068,0.07075349,104.77,104.75,0.06560335]
[1744197539260,59.04,104.83,104.76,63.86436706]
[1744197539465,9.5446,104.83,104.76,63.86436706]
[1744197539665,4.4315,104.84,104.81,9.5452]
[1744197539868,9.5428,104.85,104.78,63.86436706]
[1744197540270,9.5428,104.85,104.81,9.5451]
[1744197540464,562.84,104.86,104.8,63.92728026]
[1744197540465,0.06623474,104.83,104.8,63.92728026]
[1744197540771,59.04,104.89,104.8,0.0629132]
[1744197540965,9.5407,104.87,104.81,63.86436706]
[1744197541170,59.04,104.89,104.81,63.86436706]
[1744197541372,4.5091,104.9,104.83,63.86436706]
[1744197541568,562.84,104.92,104.85,63.86436706]
[1744197541962,562.84,104.92,104.87,0.06037239]
[1744197542575,562.78,104.97,104.87,63.92473945]
[1744197542767,626.64436706,104.97,104.87,63.92473945]
[1744197542963,626.64436706,104.97,104.87,63.86436706]
[1744197543164,9.5351,104.93,104.91,0.07146964]
[1744197543364,68.5351,104.93,104.91,0.07146964]
[1744197543577,59.0,104.93,104.91,0.07146964]
[1744197544075,59.0,104.96,104.91,0.07146964]
[1744197544376,9.2966,104.98,104.91,0.07146964]
[1744197544584,59.0,104.99,104.96,9.5319]
[1744197544876,59.0,104.99,104.93,63.92638702]
[1744197545077,4.0637,105.01,104.93,63.86436706]
[1744197545372,9.5293,104.99,104.95,9.59734971]
[1744197545970,9.5293,104.99,104.96,9.5318]
[1744197546171,58.98,104.98,104.95,0.06484971]
[1744197546478,58.98,104.98,104.9,4.7885]
[1744197546777,4.0618,104.97,104.9,4.7885]
[1744197547182,4.0618,104.97,104.89,63.86436706]
[1744197547588,58.98,105.0,104.97,9.531]
[1744197547886,59.04333983,105.0,104.93,63.86436706]
[1744197548093,59.04333983,105.0,104.95,63.86436706]
[1744197548385,58.98,105.0,104.97,0.06564715]
[1744197548591,0.07155899,104.99,104.97,0.06564715]
[1744197549183,0.07155899,104.99,104.97,9.59604715]
[1744197549383,0.07155899,104.99,104.97,0.06564715]
[1744197549884,5.899e-05,104.99,104.98,9.5301]
[1744197550490,68.4834,105.06,105.02,9.5262]
[1744197550683,4.7721,105.08,105.0,63.86436706]
[1744197551287,9.5221,105.07,105.03,9.5251]
[1744197551484,68.63646706,105.08,104.98,68.69066706]
[1744197551687,73.05926706,105.08,105.04,0.06565762]
[1744197551891,63.86436706,105.06,104.96,68.37566706]
[1744197552086,63.86436706,105.04,104.94,4.5383]
[1744197552277,562.32,105.05,104.95,63.86436706]
[1744197552481,63.86436706,105.04,104.94,4.5383]
[1744197552682,562.32,105.05,104.95,63.86436706]
[1744197552878,9.5266,105.02,104.98,9.5297]
[1744197553095,9.5266,105.02,104.99,0.06863035]
[1744197553096,0.06388869,105.01,104.99,0.06863035]
[1744197554289,0.06388869,105.01,105.0,9.5283]
[1744197554491,0.06388869,105.01,104.99,0.06863035]
[1744197554690,0.06388869,105.01,105.0,9.5283]
[1744197554986,0.06388869,105.01,104.99,0.06863035]
[1744197555194,59.00388869,105.01,104.99,0.06863035]
[1744197587212,68.3833,105.06,105.04,0.07317442]
[1744197587410,58.86,105.06,105.04,0.07317442]
[1744197587611,9.5238,105.05,105.04,0.07317442]
[1744197588015,9.52,105.05,104.98,1.90512478]
[1744197588218,9.5269,105.02,104.98,1.90512478]
[1744197588410,68.3869,105.02,104.99,9.5291]
[1744197588606,9.5281,105.01,104.98,1.90512478]
[1744197588811,58.86,105.05,104.98,1.90512478]
[1744197589214,0.06101494,105.03,105.0,0.06075308]
[1744197589712,9.58711494,105.03,105.0,0.06075308]
[1744197589912,9.58711494,105.03,105.0,9.58855308]
[1744197590114,0.06101494,105.03,105.0,0.06075308]
[1744197590314,503.14101494,105.03,104.95,4.7355]
[1744197590619,3.9961,105.02,104.95,4.7355]
[1744197590818,58.86,105.01,104.95,4.7355]
[1744197591006,58.86,105.01,104.98,9.5297]
[1744197591513,58.93101875,105.01,104.98,9.60115622]
[1744197591707,58.93101875,105.01,104.98,0.07145622]
[1744197592110,68.45881875,105.01,104.98,0.07145622]
[1744197592312,68.45881875,105.01,104.98,9.60115622]
[1744197592921,58.93101875,105.01,104.98,0.07145622]
[1744197623656,0.07226623,104.82,104.8,0.06394397]
[1744197624345,0.07226623,104.82,104.8,9.60984397]
[1744197624549,0.07226623,104.82,104.8,1.97234091]
[1744197625057,0.07226623,104.82,104.81,9.5456]
[1744197625350,0.07226623,104.82,104.8,1.97234091]
[1744197625552,0.07226623,104.82,104.81,9.5456]
[1744197626556,6.623e-05,104.82,104.81,9.5456]
[1744197627958,6.623e-05,104.82,104.81,14.0691]
[1744197630857,6.623e-05,104.82,104.81,9.5456]
[1744197631059,6.623e-05,104.82,104.74,8.8314]
[1744197631247,4.60286623,104.82,104.75,1.90930787]
[1744197631451,6.4762,104.82,104.78,9.5479]
[1744197631759,4.6028,104.82,104.78,1.90876121]
[1744197632259,0.06542913,104.81,104.79,0.06274723]
[1744197632464,0.06542913,104.81,104.74,8.8314]
[1744197632653,4.6028,104.82,104.7,58.86]
[1744197632959,9.5471,104.8,104.74,1.90949016]
[1744197633160,58.78,104.79,104.74,1.90949016]
[1744197633467,9.61723816,104.78,104.75,0.06333196]
[1744197633658,0.06873816,104.78,104.75,0.06333196]
[1744197634566,9.5497,104.77,104.75,0.06333196]
[1744197634860,0.06873816,104.78,104.75,0.06333196]
[1744197635654,0.06873816,104.78,104.77,9.5492]
[1744197636757,0.06873816,104.78,104.76,9.5498]
[1744197636961,0.06873816,104.78,104.75,0.06333196]
[1744197637170,0.06873816,104.78,104.77,9.5492]
[1744197638967,3.816e-05,104.78,104.77,9.5492]
[1744197641459,3.816e-05,104.78,104.76,9.5494]
[1744197641771,3.816e-05,104.78,104.75,0.06333196]
[1744197641961,3.816e-05,104.78,104.77,9.5492]
[1744197643973,9.5469,104.8,104.78,9.5477]
[1744197644181,58.28003816,104.81,104.78,9.5477]
[1744197644466,67.82593816,104.81,104.78,9.5477]
[1744197644659,58.28003816,104.81,104.77,9.5487]
[1744197645067,58.28003816,104.81,104.75,0.06333196]
[1744197645363,9.5471,104.8,104.77,9.5488]
[1744197645565,58.28003816,104.81,104.75,0.06333196]
[1744197645765,67.82563816,104.81,104.79,9.547]
[1744197646061,58.28003816,104.81,104.79,9.547]
[1744197646264,58.28003816,104.81,104.75,0.06333196]
[1744197646460,58.28003816,104.81,104.8,9.5465]
[1744197647169,58.28003816,104.81,104.79,9.5469]
[1744197647464,58.28003816,104.81,104.75,0.06333196]
[1744197647673,58.28003816,104.81,104.8,9.5465]
[1744197649173,4.484,104.85,104.81,9.5453]
[1744197649476,58.8,104.86,104.75,58.86333196]
[1744197649675,58.8,104.86,104.85,9.542]
[1744197650179,58.8,104.86,104.84,9.542]
[1744197650877,58.8,104.86,104.79,13.8307]
[1744197651471,58.8,104.86,104.84,9.5425]
[1744197651674,504.08,104.88,104.79,13.8307]
[1744197651867,504.08,104.88,104.8,19.0923]
[1744197652467,504.08,104.88,104.8,83.00069694]
[1744197652767,504.08,104.88,104.86,9.5404]
[1744197653178,504.08,104.88,104.8,1.90839694]
[1744197686496,58.7,104.74,104.73,1.90967249]
[1744197687393,68.252,104.74,104.73,1.90967249]
[1744197688192,504.32,104.81,104.73,1.90967249]
[1744197688398,58.72,104.8,104.73,1.90967249]
[1744197688990,58.72,104.8,104.75,9.5507]
[1744197689194,58.72,104.8,104.73,1.90967249]
[1744197689891,9.5494,104.77,104.73,1.90967249]
[1744197690200,9.5494,104.77,104.75,9.5509]
[1744197690501,58.72,104.8,104.73,1.90967249]
[1744197690696,58.72,104.8,104.74,9.5518]
[1744197691099,58.72,104.8,104.73,1.90967249]
[1744197691398,1.68310608,104.79,104.72,1.90985485]
[1744197691599,9.5529,104.73,104.72,1.90985485]
[1744197691990,9.5529,104.73,104.65,19.1202]
[1744197691991,387.64,104.77,104.58,58.72]
[1744197692190,19.1024,104.75,104.63,13.7234]
[1744197692399,504.36,104.74,104.63,9.1146]
[1744197692699,9.5581,104.68,104.63,9.1146]
[1744197692900,68.2781,104.68,104.65,9.5598]
[1744197693502,58.72,104.68,104.63,18.6762]
[1744197693801,504.4,104.67,104.61,4.6088]
[1744197694001,9.5599,104.66,104.61,4.6088]
[1744197694302,504.4,104.67,104.61,4.6088]
[1744197694499,9.561,104.65,104.61,4.6088]
[1744197694701,9.561,104.65,104.62,9.5623]
[1744197694903,58.58,104.64,104.62,9.5623]
[1744197695102,58.58,104.64,104.61,4.6088]
[1744197695500,572.5388,104.67,104.61,4.6088]
[1744197695799,504.4,104.67,104.61,4.6088]
[1744197696597,504.4,104.67,104.6,10.93534588]
[1744197696996,9.5597,104.66,104.63,9.5616]
[1744197697204,68.1597,104.66,104.63,9.5616]
[1744197697499,9.5602,104.65,104.62,9.5625]
[1744197697894,58.6,104.66,104.6,10.93534588]
[1744197698693,9.5598,104.66,104.6,10.93534588]
[1744197698894,5.6422,104.72,104.6,10.93534588]
[1744197699093,64.2422,104.72,104.61,1.91186311]
[1744197699707,64.2422,104.72,104.63,9.5611]
[1744197700006,64.2422,104.72,104.62,62.0]
[1744197700505,64.2422,104.72,104.61,1.91186311]
[1744197700797,9.5568,104.69,104.65,9.5594]
[1744197701005,58.6,104.68,104.61,1.91186311]
[1744197701211,58.6,104.7,104.61,1.91186311]
[1744197701504,58.6,104.7,104.66,9.5592]
[1744197701693,58.6,104.7,104.61,1.91186311]
[1744197701895,68.1563,104.7,104.67,9.558]
[1744197703102,9.5571,104.69,104.66,9.5585]
[1744197703496,58.6,104.7,104.62,62.0]
[1744197703696,9.5581,104.68,104.65,9.5601]
[1744197704106,58.6,104.7,104.62,63.91168036]
[1744197704806,58.6,104.7,104.68,9.5571]
[1744197704995,58.62,104.72,104.62,63.91168036]
[1744197705399,9.5548,104.71,104.68,9.5568]
[1744197705706,9.5548,104.71,104.62,63.91168036]
[1744197706002,68.1743,104.72,104.63,1.91149765]
[1744197706397,9.5547,104.71,104.63,1.91149765]
[1744197707404,9.5547,104.71,104.68,9.5569]
[1744197707804,9.5557,104.7,104.68,9.5569]
[1744197708005,58.62,104.72,104.68,9.5569]
[1744197708307,9.5555,104.71,104.68,9.5569]
[1744197708809,58.62,104.72,104.69,9.5565]
[1744197709003,58.62,104.72,104.63,1.91149765]
[1744197709199,58.62,104.72,104.64,62.0]
[1744197709399,58.62,104.72,104.69,9.556]
[1744197709604,68.1745,104.72,104.69,9.556]
[1744197710104,9.5554,104.71,104.66,4.4038]
[1744197710304,9.5554,104.71,104.68,9.557]
[1744197710499,58.62,104.72,104.68,9.557]
[1744197710701,9.5569,104.69,104.65,9.382]
[1744197710901,58.6,104.68,104.65,9.382]
[1744197711301,68.1575,104.68,104.64,1.91131498]
[1744197711801,58.6,104.68,104.64,1.91131498]
[1744197712009,58.6,104.68,104.67,9.5584]
[1744197712407,58.6,104.72,104.67,9.5584]
[1744197712608,58.6,104.72,104.69,9.5561]
[1744197712807,58.6,104.72,104.64,1.91131498]
[1744197713202,9.5551,104.71,104.68,9.5566]
[1744197713598,58.6,104.72,104.64,1.91131498]
[1744197713909,58.6,104.72,104.67,9.5579]
[1744197746549,9.61861389,104.69,104.66,0.06316133]
[1744197746948,0.06141389,104.69,104.66,0.06316133]
[1744197748149,9.61821389,104.69,104.66,0.06316133]
[1744197748648,9.5583,104.68,104.66,0.06316133]
[1744197748849,0.06141389,104.69,104.66,0.06316133]
[1744197749850,58.44,104.68,104.66,0.06316133]
[1744197750147,58.44,104.68,104.51,58.44]
[1744197750451,9.5654,104.6,104.53,9.3329]
[1744197750746,538.9363,104.71,104.53,71.3329]
[1744197750942,88.67349399,104.7,104.53,9.3329]
[1744197751143,0.07128776,104.63,104.53,9.3329]
[1744197751346,0.07128776,104.63,104.6,0.06767573]
[1744197751547,5.8254,104.64,104.53,9.3329]
[1744197751745,0.06814079,104.63,104.53,9.3329]
[1744197751948,10.2266,104.64,104.53,9.3329]
[1744197752749,10.2266,104.64,104.57,0.06808983]
[1744197752750,9.5664,104.59,104.57,0.06808983]
[1744197752946,9.5664,104.59,104.53,9.3329]
[1744197753149,10.2266,104.64,104.57,0.0712628]
[1744197753445,10.2266,104.64,104.53,9.3329]
[1744197753650,0.06545152,104.62,104.53,9.3329]
[1744197753853,0.06545152,104.62,104.59,0.06485]
[1744197754149,0.06273489,104.62,104.59,0.06362946]
[1744197754458,0.06273489,104.62,104.55,58.28]
[1744197754754,10.2266,104.64,104.55,58.28]
[1744197755544,0.07206076,104.61,104.58,0.07280913]
[1744197756247,9.5657,104.59,104.58,0.07280913]
[1744197756739,0.07206076,104.61,104.58,0.07280913]
[1744197757638,9.5657,104.59,104.58,0.07280913]
[1744197759240,9.5703,104.54,104.53,9.3329]
[1744197791369,9.5789,104.45,104.41,9.5821]
[1744197791670,4.5226,104.47,104.39,66.5807]
[1744197791967,9.5797,104.44,104.42,0.0718203]
[1744197792159,9.64745978,104.44,104.42,0.0718203]
[1744197792674,9.5803,104.43,104.42,0.0718203]
[1744197794968,0.06775978,104.44,104.34,58.2]
[1744197794969,58.26775978,104.44,104.34,58.2]
[1744197795271,58.2,104.44,104.35,14.0293]
[1744197795471,4.6143,104.43,104.35,14.0293]
[1744197795671,4.6143,104.43,104.34,4.3902]
[1744197795865,9.5864,104.37,104.34,4.3902]
[1744197796067,58.2680934,104.4,104.37,0.06863957]
[1744197796261,58.2,104.4,104.34,4.3902]
[1744197796470,9.5862,104.37,104.34,4.3902]
[1744197796773,9.5862,104.37,104.36,0.07136513]
[1744197796974,9.65783606,104.37,104.36,0.07136513]
[1744197797169,0.07163606,104.37,104.36,0.07136513]
[1744197798374,4.6143,104.43,104.36,0.07136513]
[1744197798575,58.22,104.44,104.36,0.07136513]
[1744197798778,12.56768951,104.43,104.36,4.7046]
[1744197798979,12.56768951,104.43,104.35,9.5876]
[1744197799276,12.56768951,104.43,104.32,9.267]
[1744197799674,0.06572633,104.39,104.36,0.06510064]
[1744197799868,0.06572633,104.39,104.34,58.22]
[1744197800074,0.06572633,104.39,104.38,9.5849]
[1744197800376,0.0680536,104.4,104.38,9.5849]
[1744197800575,0.0680536,104.4,104.34,58.22]
[1744197800876,0.0680536,104.4,104.38,0.06758561]
[1744197801077,0.0680536,104.4,104.39,9.584]
[1744197801582,50.27075804,104.44,104.38,0.06758561]
[1744197801774,50.27075804,104.44,104.38,58.28758561]
[1744197801974,50.27075804,104.44,104.39,66.5213]
[1744197802375,50.27075804,104.44,104.42,9.5812]
[1744197802677,50.33983216,104.44,104.39,66.5213]
[1744197802878,50.33983216,104.44,104.42,0.06455305]
[1744197803178,50.33983216,104.44,104.43,9.5803]
[1744197803581,43.02753216,104.44,104.43,9.5803]
[1744197803775,505.8,104.48,104.42,0.06455305]
[1744197803974,9.5771,104.47,104.42,0.06455305]
[1744197804281,9.5771,104.47,104.43,9.5797]
[1744197804583,58.22,104.49,104.4,4.4208]
[1744197804873,0.06567982,104.46,104.43,0.07287235]
[1744197805080,58.22,104.45,104.34,77.3958]
[1744197805277,64.1558,104.45,104.4,9.5826]
[1744197805468,4.8473,104.44,104.36,4.6474]
[1744197805781,4.8473,104.44,104.41,9.5817]
[1744197805981,4.8473,104.44,104.36,4.6474]
[1744197806379,14.49793734,104.44,104.41,0.07024594]
[1744197806578,14.4271,104.44,104.41,0.07024594]
[1744197806778,14.49905941,104.44,104.41,0.07024594]
[1744197807278,9.5805,104.43,104.41,0.07024594]
[1744197807774,14.49935941,104.44,104.41,0.07024594]
[1744197808474,9.5805,104.43,104.41,0.07024594]
[1744197808978,9.5809,104.43,104.41,0.07024594]
[1744197809382,4.91925941,104.44,104.41,0.07024594]
[1744197809583,9.5803,104.43,104.41,0.07024594]
[1744197809983,4.91925941,104.44,104.41,0.07024594]
[1744197811381,9.5808,104.43,104.41,0.07024594]
[1744197811579,4.91925941,104.44,104.41,0.07024594]
[1744197811983,9.5813,104.42,104.41,0.07024594]
[1744197812677,9.5808,104.43,104.41,0.07024594]
[1744197813987,4.91925941,104.44,104.41,0.07024594]
[1744197814187,6.83423451,104.44,104.41,0.07024594]
[1744197814487,9.5808,104.43,104.41,0.07024594]
[1744197815588,6.83423451,104.44,104.41,0.07024594]
[1744197815991,9.5807,104.43,104.41,0.07024594]
[1744197816292,6.83423451,104.44,104.41,9.65234594]
[1744197816589,16.41423451,104.44,104.41,9.65234594]
[1744197818091,6.83423451,104.44,104.41,9.65234594]
[1744197818592,16.41413451,104.44,104.41,0.07024594]
[1744197818891,57.98,104.52,104.41,0.07024594]
[1744197819089,13.7542,104.5,104.41,0.07024594]
[1744197819289,9.5752,104.49,104.4,14.1313]
[1744197819489,13.7542,104.5,104.4,14.1313]
[1744197819691,1.91405876,104.49,104.36,77.1522]
[1744197819895,505.9,104.48,104.36,91.2835]
[1744197820087,0.06373341,104.44,104.41,0.07063568]
[1744197820484,0.06373341,104.44,104.36,91.2835]
[1744197820690,0.06373341,104.44,104.42,9.5808]
[1744197820883,9.5781,104.46,104.41,0.06698883]
[1744197821096,0.07329642,104.44,104.41,0.06698883]
[1744197821695,0.07329642,104.44,104.42,9.5811]
[1744197822394,0.07329642,104.44,104.41,0.06698883]
[1744197823989,0.07329642,104.44,104.43,9.5803]
[1744197824598,0.07329642,104.44,104.42,9.5806]
[1744197824991,0.07329642,104.44,104.41,0.06698883]
[1744197825694,67.5608,104.43,104.41,0.06698883]
[1744197826087,57.98,104.43,104.41,0.06698883]
[1744197826291,72.2782,104.43,104.34,1.66674649]
[1744197826587,9.4818,104.42,104.36,9.5859]
[1744197826790,9.4818,104.42,104.32,28.7711]
[1744197826988,9.4818,104.42,104.3,13.9797]
[1744197827203,505.84,104.41,104.3,13.9797]
[1744197827397,0.06197357,104.37,104.35,0.0698304]
[1744197827604,0.06197357,104.37,104.29,202.06479199]
[1744197827799,4.6375,104.37,104.29,202.06479199]
[1744197828205,9.5899,104.33,104.29,202.06479199]
[1744197828407,58.0,104.34,104.29,202.06479199]
[1744197828800,0.06511864,104.33,104.3,0.07327519]
[1744197829003,9.65511864,104.33,104.3,9.66507519]
[1744197829199,0.06511864,104.33,104.3,0.07327519]
[1744197829704,58.0,104.4,104.3,0.07327519]
[1744197829902,62.6375,104.4,104.3,0.07327519]
[1744197830103,62.6375,104.4,104.29,8.8244]
[1744197830802,9.5864,104.37,104.33,9.5887]
[1744197831106,59.982744,104.36,104.33,0.06517895]
[1744197831293,9.5886,104.34,104.33,0.06517895]
[1744197831500,59.982744,104.36,104.28,0.09870703]
[1744197831803,9.5898,104.33,104.28,0.09870703]
[1744197832006,1.91662673,104.35,104.28,0.09870703]
[1744197832307,9.59,104.33,104.29,9.5926]
[1744197832502,0.06503786,104.33,104.28,0.09870703]
[1744197832711,0.06503786,104.33,104.3,0.07097944]
[1744197833308,0.06503786,104.33,104.31,9.5912]
[1744197833808,0.06503786,104.33,104.31,9.5907]
[1744197834003,0.06503786,104.33,104.3,0.07097944]
[1744197835005,0.06503786,104.33,104.32,9.5904]
[1744197836509,58.02,104.41,104.32,9.58]
[1744197836703,58.02,104.41,104.31,62.0]
[1744197836910,9.5841,104.39,104.36,9.5863]
[1744197837408,58.02,104.41,104.29,14.2467]
[1744197837711,0.07227667,104.39,104.36,0.06631687]
[1744197838010,9.5857,104.38,104.36,0.06631687]
[1744197838309,58.02,104.37,104.29,9.4592]
[1744197838511,9.5865,104.37,104.36,0.07169449]
[1744197838711,58.02,104.37,104.29,9.4592]
[1744197839211,58.02,104.37,104.35,0.06359078]
[1744197839406,58.02,104.37,104.34,9.588]
[1744197839602,58.02,104.37,104.32,9.5897]
[1744197839799,58.0912579,104.37,104.35,0.06825797]
[1744197840104,9.5869,104.36,104.29,9.4592]
[1744197840407,58.08122849,104.37,104.35,0.06644282]
[1744197840611,58.02,104.36,104.29,9.4592]
[1744197841004,58.02,104.36,104.35,0.06472178]
[1744197841204,58.02,104.36,104.29,9.4592]
[1744197841610,564.2,104.36,104.34,0.06962467]
[1744197842004,564.2,104.36,104.29,9.4662]
[1744197842405,564.26406096,104.36,104.34,0.06728642]
[1744197842710,9.5908,104.32,104.29,9.5928]
[1744197842912,58.02,104.31,104.28,9.69240703]
[1744197843110,58.02,104.3,104.28,0.09870703]
[1744197843311,58.02,104.32,104.28,0.09870703]
[1744197843812,0.0633166,104.31,104.29,0.07226114]
[1744197844009,0.0633166,104.31,104.3,9.5923]
[1744197844507,506.18,104.36,104.34,9.5886]
[1744197844712,57.78,104.35,104.29,0.07226114]
[1744197844908,9.5901,104.33,104.28,0.09870703]
[1744197845111,57.78,104.35,104.29,9.5924]
[1744197845614,57.78,104.35,104.28,0.09870703]
[1744197845818,0.06260404,104.33,104.31,0.06807187]
[1744197846509,9.5904,104.32,104.31,0.06807187]
[1744197846710,0.06260404,104.33,104.28,0.09870703]
[1744197846915,9.65260404,104.33,104.28,0.09870703]
[1744197847116,57.8,104.32,104.28,0.09870703]
[1744197847816,57.8,104.32,104.29,0.06021574]
[1744197848012,67.3909,104.32,104.29,0.06021574]
[1744197848520,57.8,104.31,104.29,0.06021574]
[1744197850916,57.8,104.32,104.29,0.06021574]
[1744197851314,9.5917,104.31,104.29,0.06021574]
[1744197851515,57.8,104.32,104.29,9.65281574]
[1744197851713,57.8,104.32,104.29,0.06021574]
[1744197852420,9.5919,104.31,104.29,0.06021574]
[1744197853020,57.8,104.32,104.29,0.06021574]
[1744197853223,57.8,104.32,104.28,0.09870703]
[1744197853624,9.5932,104.29,104.28,0.09870703]
[1744197854426,57.8,104.32,104.27,0.36393763]
[1744197854729,9.5941,104.28,104.27,0.43144753]
[1744197855023,67.4141,104.28,104.27,0.43144753]
[1744197855209,57.82,104.28,104.24,9.5973]
[1744197855414,4.7311,104.27,104.23,0.3726255]
[1744197855828,4.7311,104.27,104.26,9.596]
[1744197856027,57.82,104.27,104.26,9.596]
[1744197856427,57.82,104.27,104.25,9.5965]
[1744197856627,57.82,104.27,104.25,9.66639231]
[1744197857029,57.82,104.27,104.25,0.06989231]
[1744197857522,14.3271,104.26,104.25,0.06989231]
[1744197857723,4.7311,104.26,104.25,0.06989231]
[1744197858120,4.7311,104.26,104.23,0.3726255]
[1744197858529,57.82,104.26,104.24,9.5973]
[1744197858831,57.82,104.26,104.23,0.3726255]
[1744197859632,57.88708971,104.26,104.25,9.5969]
[1744197859932,57.88708971,104.26,104.23,0.44262666]
[1744197860121,57.88708971,104.26,104.24,9.5976]
[1744197860424,57.88708971,104.26,104.23,0.44262666]
[1744197860626,57.88708971,104.26,104.24,9.5977]
[1744197861333,0.06708971,104.26,104.23,0.44262666]
[1744197861739,0.06708971,104.26,104.25,9.5969]
[1744197862539,0.06708971,104.26,104.23,0.44262666]
[1744197862732,57.82,104.25,104.23,0.44262666]
[1744197863039,57.82,104.25,104.24,9.5978]
[1744197863339,0.06708971,104.26,104.23,0.44262666]
[1744197863841,0.06708971,104.26,104.25,9.5969]
[1744197866940,0.06708971,104.26,104.24,14.1859]
[1744197867245,0.06708971,104.26,104.24,4.5886]
[1744197867746,57.84,104.3,104.24,4.5886]